fUST/lending_fUST_20250626
["ID","MTS","AMOUNT","RATE_DAILY","PERIOD"]
[367750259,1750915841615,-460.0,0.00018067,2]
[367750261,1750915841624,-460.0,0.00018067,2]
[367750263,1750915841634,-460.0,0.00018067,2]
[367750265,1750915841643,-460.0,0.00018067,2]
[367750267,1750915841652,-460.84,0.00018067,2]
[367750269,1750915841662,-460.0,0.00018067,2]
[367750271,1750915841671,-460.0,0.00018067,2]
[367750273,1750915841680,-460.0,0.00018067,2]
[367750275,1750915841690,-460.0,0.00018067,2]
[367750277,1750915841700,-460.0,0.00018067,2]
[367750279,1750915841709,-460.0,0.00018067,2]
[367750281,1750915841719,-460.0,0.00018067,2]
[367750283,1750915841728,-460.0,0.00018067,2]
[367750285,1750915841737,-460.0,0.00018067,2]
[367750287,1750915841747,-460.0,0.00018067,2]
[367750288,1750915841756,-460.0,0.00018067,2]
[367750289,1750915841765,-460.0,0.00018067,2]
[367750290,1750915841775,-460.0,0.00018067,2]
[367750291,1750915841784,-460.0,0.00018067,2]
[367750307,1750915841928,-460.0,0.00018067,2]
[367750309,1750915841938,-460.0,0.00018067,2]
[367750311,1750915841948,-460.0,0.00018067,2]
[367750313,1750915841958,-460.0,0.00018067,2]
[367750315,1750915841967,-460.0,0.00018067,2]
[367750317,1750915841976,-460.0,0.00018067,2]
[367750319,1750915841986,-460.0,0.00018067,2]
[367750321,1750915841995,-460.0,0.00018067,2]
[367750323,1750915842005,-460.0,0.00018067,2]
[367750325,1750915842014,-940.84,0.00018087,2]
[367750327,1750915842023,-460.0,0.00018087,2]
[367750328,1750915842032,-460.0,0.00018087,2]
[367750330,1750915842041,-460.0,0.00018087,2]
[367750331,1750915842051,-460.0,0.00018087,2]
[367750333,1750915842060,-460.0,0.00018087,2]
[367750334,1750915842069,-460.0,0.00018087,2]
[367750335,1750915842078,-460.0,0.00018087,2]
[367750337,1750915842087,-460.0,0.00018087,2]
[367750338,1750915842097,-460.0,0.00018087,2]
[367750340,1750915842106,-460.0,0.00018087,2]
[367750341,1750915842115,-495.51,0.00018087,2]
[367750343,1750915842124,-460.0,0.00018087,2]
[367750344,1750915842133,-460.0,0.00018088,2]
[367750346,1750915842142,-160.0,0.00018113,2]
[367750347,1750915842151,-160.0,0.00018113,2]
[367750348,1750915842160,-160.0,0.00018113,2]
[367750350,1750915842170,-418.47240684,0.00018176,2]
[367750351,1750915842179,-420.0,0.0001824,2]
[367750353,1750915842188,-460.0,0.0001834,2]
[367750354,1750915842198,-460.0,0.0001834,2]
[367750356,1750915842207,-460.0,0.00018341,2]
[367750357,1750915842217,-460.0,0.00018341,2]
[367750359,1750915842226,-460.0,0.00018341,2]
[367750360,1750915842235,-1123.05,0.00018341,2]
[367750362,1750915842245,-460.0,0.00018341,2]
[367750363,1750915842254,-460.0,0.00018341,2]
[367750365,1750915842263,-460.0,0.00018341,2]
[367750366,1750915842273,-460.0,0.00018341,2]
[367750368,1750915842282,-460.0,0.00018341,2]
[367750369,1750915842292,-460.0,0.00018341,2]
[367750371,1750915842302,-460.84,0.00018341,2]
[367750373,1750915842311,-460.0,0.00018341,2]
[367750374,1750915842320,-243.03269569,0.00018341,2]
[367750376,1750915842329,-460.0,0.00018341,2]
[367750378,1750915842339,-460.0,0.00018341,2]
[367750379,1750915842348,-380.05,0.00018341,2]
[367750381,1750915842358,-460.0,0.00018341,2]
[367750382,1750915842367,-532.01,0.00018341,2]
[367750384,1750915842377,-460.0,0.00018341,2]
[367750386,1750915842386,-230.52547908,0.00018341,2]
[367750387,1750915842395,-460.0,0.00018341,2]
[367750390,1750915842405,-460.0,0.00018341,2]
[367750392,1750915842415,-460.0,0.00018341,2]
[367750395,1750915842425,-530.54295751,0.00018341,2]
[367750397,1750915842434,-460.0,0.00018341,2]
[367750400,1750915842444,-460.0,0.00018341,2]
[367750403,1750915842454,-460.0,0.00018341,2]
[367750405,1750915842463,-460.0,0.00018341,2]
[367750407,1750915842473,-460.0,0.00018341,2]
[367750409,1750915842482,-460.0,0.00018341,2]
[367750411,1750915842491,-460.0,0.00018341,2]
[367750412,1750915842500,-798.58513118,0.00018356,2]
[367750413,1750915842510,-208.0989754,0.00018356,2]
[367750414,1750915842519,-940.84,0.00018361,2]
[367750417,1750915842528,-460.0,0.00018361,2]
[367750419,1750915842537,-460.0,0.00018361,2]
[367750421,1750915842546,-460.0,0.00018361,2]
[367750423,1750915842555,-460.0,0.00018361,2]
[367750425,1750915842565,-460.0,0.00018361,2]
[367750427,1750915842574,-460.0,0.00018361,2]
[367750429,1750915842583,-460.0,0.00018361,2]
[367750430,1750915842593,-460.0,0.00018361,2]
[367750432,1750915842603,-460.0,0.00018361,2]
[367750434,1750915842612,-153.22282899,0.00018361,2]
[367750436,1750915842621,-495.51,0.00018361,2]
[367750438,1750915842630,-460.0,0.00018361,2]
[367750440,1750915842639,-460.0,0.00018362,2]
[367750442,1750915842648,-418.47240684,0.00018452,2]
[367750444,1750915842657,-460.0,0.00018614,2]
[367750446,1750915842666,-460.0,0.00018614,2]
[367750447,1750915842675,-460.0,0.00018615,2]
[367750450,1750915842685,-1123.05,0.00018615,2]
[367750451,1750915842694,-460.0,0.00018615,2]
[367750453,1750915842703,-475.66,0.00018615,2]
[367750455,1750915842712,-460.0,0.00018615,2]
[367750457,1750915842722,-460.0,0.00018615,2]
[367750459,1750915842731,-460.0,0.00018615,2]
[367750461,1750915842740,-561.28,0.00018615,2]
[367750463,1750915842750,-460.84,0.00018615,2]
[367750465,1750915842759,-460.0,0.00018615,2]
[367750467,1750915842769,-460.0,0.00018615,2]
[367750469,1750915842778,-460.0,0.00018615,2]
[367750472,1750915842788,-460.0,0.00018615,2]
[367750475,1750915842797,-460.0,0.00018615,2]
[367750477,1750915842806,-460.0,0.00018615,2]
[367750480,1750915842815,-460.0,0.00018615,2]
[367750484,1750915842824,-460.0,0.00018615,2]
[367750486,1750915842834,-460.0,0.00018615,2]
[367750489,1750915842843,-460.0,0.00018615,2]
[367750492,1750915842853,-460.0,0.00018615,2]
[367750495,1750915842862,-460.0,0.00018615,2]
[367750498,1750915842871,-460.0,0.00018615,2]
[367750501,1750915842881,-940.84,0.00018635,2]
[367750504,1750915842890,-460.0,0.00018635,2]
[367750507,1750915842900,-460.0,0.00018635,2]
[367750510,1750915842909,-460.0,0.00018635,2]
[367750514,1750915842919,-372.80603949,0.00018635,2]
[367750518,1750915842928,-460.0,0.00018635,2]
[367750522,1750915842937,-460.0,0.00018635,2]
[367750526,1750915842948,-460.0,0.00018635,2]
[367750530,1750915842957,-460.0,0.00018635,2]
[367750534,1750915842966,-460.0,0.00018635,2]
[367750538,1750915842975,-495.51,0.00018635,2]
[367750541,1750915842984,-460.0,0.00018636,2]
[367750543,1750915842993,-846.92323443,0.00018657,2]
[367750545,1750915843002,-213.72380786,0.00018657,2]
[367750547,1750915843013,-425.22527846,0.00018657,2]
[367750549,1750915843023,-230.24506774,0.00018657,2]
[367750551,1750915843032,-160.0,0.00018657,2]
[367750553,1750915843041,-12560.17507789,0.00018657,2]
[367750554,1750915843050,-160.0,0.00018657,2]
[367750556,1750915843059,-836.92866116,0.00018657,2]
[367750558,1750915843068,-160.0,0.00018657,2]
[367750561,1750915843078,-418.47240684,0.00018728,2]
[367750563,1750915843087,-460.0,0.00018888,2]
[367750565,1750915843096,-460.0,0.00018888,2]
[367750567,1750915843105,-460.0,0.00018889,2]
[367750569,1750915843114,-1123.05,0.00018889,2]
[367750571,1750915843124,-460.0,0.00018889,2]
[367750573,1750915843133,-460.0,0.00018889,2]
[367750575,1750915843142,-460.84,0.00018889,2]
[367750577,1750915843152,-460.0,0.00018889,2]
[367750579,1750915843161,-460.0,0.00018889,2]
[367750581,1750915843170,-493.90729236,0.00018889,2]
[367750583,1750915843179,-460.0,0.00018889,2]
[367750585,1750915843188,-155.96,0.00018889,2]
[367750587,1750915843199,-186.24,0.00018889,2]
[367750589,1750915843207,-460.0,0.00018889,2]
[367750591,1750915843217,-460.0,0.00018889,2]
[367750593,1750915843226,-460.0,0.00018889,2]
[367750595,1750915843235,-460.0,0.00018889,2]
[367750598,1750915843244,-559.79,0.00018889,2]
[367750601,1750915843253,-460.0,0.00018889,2]
[367750604,1750915843263,-424.65,0.00018889,2]
[367750607,1750915843272,-940.84,0.00018909,2]
[367750609,1750915843282,-460.0,0.00018909,2]
[367750612,1750915843292,-460.0,0.00018909,2]
[367750616,1750915843304,-460.0,0.00018909,2]
[367750618,1750915843313,-460.0,0.00018909,2]
[367750622,1750915843323,-460.0,0.00018909,2]
[367750625,1750915843332,-460.0,0.00018909,2]
[367750628,1750915843343,-495.51,0.00018909,2]
[367750631,1750915843352,-460.0,0.0001891,2]
[367750634,1750915843361,-1733.23535126,0.00018965,2]
[367750637,1750915843371,-418.47240684,0.00019003,2]
[367750640,1750915843382,-500.0,0.00019054,2]
[367750643,1750915843392,-460.0,0.00019162,2]
[367750646,1750915843402,-460.0,0.00019162,2]
[367750649,1750915843411,-460.0,0.00019163,2]
[367750652,1750915843421,-1123.05,0.00019163,2]
[367750655,1750915843430,-460.0,0.00019163,2]
[367750657,1750915843439,-460.0,0.00019163,2]
[367750661,1750915843450,-460.84,0.00019163,2]
[367750663,1750915843460,-460.0,0.00019163,2]
[367750667,1750915843470,-460.0,0.00019163,2]
[367750670,1750915843480,-460.0,0.00019163,2]
[367750673,1750915843489,-331.06,0.00019163,2]
[367750676,1750915843499,-460.0,0.00019163,2]
[367750680,1750915843510,-460.0,0.00019163,2]
[367750683,1750915843519,-460.0,0.00019163,2]
[367750686,1750915843529,-331.9,0.00019163,2]
[367750688,1750915843539,-160.866837,0.00019178,2]
[367750691,1750915843549,-940.84,0.00019183,2]
[367750694,1750915843558,-309.74,0.00019183,2]
[367750697,1750915843567,-325.64,0.00019183,2]
[367750700,1750915843577,-460.0,0.00019183,2]
[367750703,1750915843587,-460.0,0.00019183,2]
[367750706,1750915843596,-460.0,0.00019183,2]
[367750709,1750915843606,-460.0,0.00019183,2]
[367750712,1750915843615,-495.51,0.00019183,2]
[367750715,1750915843625,-460.0,0.00019184,2]
[367750718,1750915843634,-418.47240684,0.00019279,2]
[367750721,1750915843643,-460.0,0.00019436,2]
[367750724,1750915843652,-460.0,0.00019436,2]
[367750727,1750915843661,-460.0,0.00019437,2]
[367750730,1750915843671,-1123.05,0.00019437,2]
[367750733,1750915843680,-460.0,0.00019437,2]
[367750736,1750915843689,-460.0,0.00019437,2]
[367750739,1750915843698,-460.84,0.00019437,2]
[367750741,1750915843707,-460.0,0.00019437,2]
[367750743,1750915843716,-460.0,0.00019437,2]
[367750745,1750915843727,-460.0,0.00019437,2]
[367750747,1750915843736,-460.0,0.00019437,2]
[367750750,1750915843746,-380.74,0.00019437,2]
[367750752,1750915843756,-151.0,0.00019437,2]
[367750753,1750915843765,-462.06,0.00019437,2]
[367750756,1750915843775,-940.84,0.00019457,2]
[367750757,1750915843784,-460.0,0.00019457,2]
[367750759,1750915843794,-460.0,0.00019457,2]
[367750762,1750915843804,-460.0,0.00019457,2]
[367750764,1750915843813,-460.0,0.00019457,2]
[367750766,1750915843822,-151.0,0.00019457,2]
[367750768,1750915843831,-495.51,0.00019457,2]
[367750770,1750915843841,-151.951666,0.00019457,2]
[367750771,1750915843850,-151.0,0.00019457,2]
[367750773,1750915843859,-151.0,0.00019457,2]
[367750775,1750915843869,-460.0,0.00019458,2]
[367750778,1750915843879,-418.47240684,0.00019555,2]
[367750779,1750915843888,-348.0,0.00019602,2]
[367750781,1750915843897,-151.0,0.00019606,2]
[367750784,1750915843906,-151.0,0.00019606,2]
[367750785,1750915843916,-151.0,0.00019606,2]
[367750787,1750915843925,-500.0,0.00019606,2]
[367750789,1750915843935,-493.32863598,0.00019606,2]
[367750791,1750915843944,-207.4,0.00019606,2]
[367750793,1750915843954,-500.0,0.00019606,2]
[367750795,1750915843963,-500.0,0.00019606,2]
[367750797,1750915843972,-500.0,0.00019606,2]
[367750799,1750915843981,-500.0,0.00019606,2]
[367750801,1750915843990,-500.0,0.00019606,2]
[367750803,1750915843999,-500.0,0.00019606,2]
[367750806,1750915844008,-500.0,0.00019606,2]
[367750808,1750915844017,-500.0,0.00019606,2]
[367750809,1750915844026,-500.0,0.00019606,2]
[367750811,1750915844036,-500.0,0.00019606,2]
[367750813,1750915844045,-500.0,0.00019606,2]
[367750815,1750915844055,-500.0,0.00019606,2]
[367750817,1750915844064,-500.0,0.00019606,2]
[367750819,1750915844074,-500.0,0.00019606,2]
[367750822,1750915844083,-500.0,0.00019606,2]
[367750824,1750915844092,-500.0,0.00019606,2]
[367750826,1750915844103,-500.0,0.00019606,2]
[367750828,1750915844112,-500.0,0.00019709,2]
[367750830,1750915844122,-158.46810837,0.00019709,2]
[367750832,1750915844131,-441456.53024031,0.0001971,2]
[367750851,1750915844308,-690.81,0.00017265,2]
[367750853,1750915844317,-460.0,0.00017265,2]
[367750855,1750915844326,-690.81,0.00017539,2]
[367750857,1750915844336,-460.0,0.00017539,2]
[367750859,1750915844345,-690.81,0.00017813,2]
[367750861,1750915844354,-460.0,0.00017813,2]
[367750863,1750915844363,-544.39056108,0.00018087,2]
[367750866,1750915844375,-146.41943892,0.00018087,2]
[367750868,1750915844384,-690.81,0.00018361,2]
[367750870,1750915844394,-260.04,0.00018615,2]
[367750871,1750915844403,-690.81,0.00018635,2]
[367750874,1750915844413,-34343.87361724,0.0001971,2]
[367750913,1750915844768,-460.0,0.00017265,2]
[367750915,1750915844779,-500.0,0.00019709,2]
[367750917,1750915844789,-500.0,0.00019709,2]
[367750919,1750915844798,-500.0,0.00019709,2]
[367750921,1750915844808,-290.00941988,0.00019709,2]
[367750923,1750915844817,-500.0,0.00019709,2]
[367750925,1750915844826,-241.54058012,0.00019709,2]
[367750928,1750915844843,-846.92323443,0.00018651,2]
[367750930,1750915844852,-168.82945312,0.00019709,2]
[367750932,1750915844861,-500.0,0.00019709,2]
[367750934,1750915844871,-500.0,0.00019709,2]
[367750936,1750915844880,-500.0,0.00019709,2]
[367750938,1750915844889,-500.0,0.00019709,2]
[367750940,1750915844898,-500.0,0.00019709,2]
[367750942,1750915844908,-500.9781785,0.00019709,2]
[367750944,1750915844917,-500.0,0.00019709,2]
[367750946,1750915844926,-24.80081395,0.00019709,2]
[367750949,1750915844943,-475.19918605,0.00019709,2]
[367750951,1750915844952,-500.0,0.00019709,2]
[367750953,1750915844962,-500.0,0.00019709,2]
[367750954,1750915844971,-500.0,0.00019709,2]
[367750957,1750915844980,-500.0,0.00019709,2]
[367750959,1750915844989,-500.0,0.00019709,2]
[367750960,1750915844999,-500.0,0.00019709,2]
[367750963,1750915845009,-500.0,0.00019709,2]
[367750965,1750915845020,-500.0,0.00019709,2]
[367750967,1750915845029,-500.0,0.00019709,2]
[367750969,1750915845039,-619.70537815,0.00019709,2]
[367750971,1750915845048,-500.0,0.00019709,2]
[367750973,1750915845058,-500.0,0.00019709,2]
[367750975,1750915845067,-500.0,0.00019709,2]
[367750977,1750915845077,-500.0,0.00019709,2]
[367750979,1750915845086,-500.0,0.00019709,2]
[367750981,1750915845096,-500.0,0.00019709,2]
[367750983,1750915845105,-500.0,0.00019709,2]
[367750985,1750915845114,-500.0,0.00019709,2]
[367750987,1750915845123,-500.0,0.00019709,2]
[367750989,1750915845133,-500.0,0.00019709,2]
[367750991,1750915845142,-500.0,0.00019709,2]
[367750993,1750915845151,-500.0,0.00019709,2]
[367750995,1750915845160,-500.0,0.00019709,2]
[367750997,1750915845170,-45897.15916245,0.0001971,2]
[367750999,1750915845179,-460.0,0.0001971,2]
[367751001,1750915845188,-153.78781,0.0001971,2]
[367751002,1750915845199,-460.0,0.0001971,2]
[367751004,1750915845208,-460.0,0.00019711,2]
[367751006,1750915845217,-1123.05,0.00019711,2]
[367751008,1750915845226,-460.0,0.00019711,2]
[367751011,1750915845236,-151.0,0.00019711,2]
[367751013,1750915845245,-460.0,0.00019711,2]
[367751014,1750915845254,-151.0,0.00019711,2]
[367751016,1750915845263,-460.84,0.00019711,2]
[367751018,1750915845272,-151.0,0.00019711,2]
[367751020,1750915845281,-153.369018,0.00019711,2]
[367751022,1750915845290,-460.0,0.00019711,2]
[367751025,1750915845305,-460.0,0.00019711,2]
[367751027,1750915845314,-354.573986,0.00019711,2]
[367751029,1750915845323,-354.573986,0.00019711,2]
[367751031,1750915845332,-151.0,0.00019711,2]
[367751033,1750915845344,-169.242712,0.00019711,2]
[367751035,1750915845353,-169.242712,0.00019711,2]
[367751037,1750915845362,-460.0,0.00019711,2]
[367751039,1750915845371,-170.727745,0.00019711,2]
[367751041,1750915845381,-170.727745,0.00019711,2]
[367751043,1750915845391,-460.0,0.00019711,2]
[367751045,1750915845400,-940.84,0.00019731,2]
[367751047,1750915845409,-460.0,0.00019731,2]
[367751049,1750915845429,-460.0,0.00019731,2]
[367751051,1750915845439,-460.0,0.00019731,2]
[367751053,1750915845448,-460.0,0.00019731,2]
[367751055,1750915845458,-495.51,0.00019731,2]
[367751057,1750915845467,-460.0,0.00019732,2]
[367751059,1750915845477,-418.47240684,0.00019831,2]
[367751061,1750915845486,-654.0,0.00019837,2]
[367751062,1750915845494,-2161.0,0.00019837,2]
[367751064,1750915845505,-408.0,0.00019837,2]
[367751066,1750915845515,-406.0,0.00019837,2]
[367751068,1750915845524,-242.94,0.00019899,2]
[367751070,1750915845533,-599.9648761,0.00019899,2]
[367751072,1750915845542,-500.0,0.00019899,2]
[367751073,1750915845551,-623.75758866,0.00019899,2]
[367751075,1750915845560,-623.75758866,0.00019899,2]
[367751077,1750915845570,-500.0,0.00019899,2]
[367751079,1750915845579,-623.75758866,0.00019899,2]
[367751081,1750915845588,-623.75758866,0.00019899,2]
[367751082,1750915845598,-207.59787071,0.00019899,2]
[367751084,1750915845607,-623.75758866,0.00019899,2]
[367751086,1750915845616,-623.75758866,0.00019899,2]
[367751088,1750915845625,-623.75758866,0.00019899,2]
[367751089,1750915845633,-623.75758866,0.00019899,2]
[367751091,1750915845643,-623.75758866,0.00019899,2]
[367751093,1750915845652,-623.75758866,0.00019899,2]
[367751095,1750915845661,-623.75758866,0.00019899,2]
[367751097,1750915845670,-500.0,0.00019899,2]
[367751099,1750915845679,-623.75758866,0.00019899,2]
[367751100,1750915845688,-623.75758866,0.00019899,2]
[367751102,1750915845698,-623.75758866,0.00019899,2]
[367751104,1750915845707,-623.75758866,0.00019899,2]
[367751106,1750915845716,-623.75758866,0.00019899,2]
[367751108,1750915845725,-623.75758866,0.00019899,2]
[367751110,1750915845734,-623.75758866,0.00019899,2]
[367751111,1750915845743,-623.75758866,0.00019899,2]
[367751113,1750915845752,-623.75758866,0.00019899,2]
[367751115,1750915845761,-335558.73462331,0.000199,7]
[367751120,1750915845806,-460.0,0.00016696,2]
[367751122,1750915845815,-440.0,0.00017265,2]
[367751123,1750915845824,-500.0,0.00019709,2]
[367751125,1750915845833,-1373.74650475,0.000199,7]
[367751127,1750915845845,-466790.78144902,0.000199,7]
[367751129,1750915845854,-151.0,0.000199,2]
[367751131,1750915845863,-151.0,0.000199,2]
[367751132,1750915845872,-151.0,0.000199,2]
[367751134,1750915845881,-587.0,0.00019929,2]
[367751136,1750915845890,-1733.23535126,0.00019944,2]
[367751138,1750915845899,-151.0,0.00019944,2]
[367751140,1750915845908,-151.0,0.00019944,2]
[367751142,1750915845918,-151.0,0.00019944,2]
[367751143,1750915845927,-151.0,0.00019944,2]
[367751145,1750915845936,-244.41593,0.00019944,2]
[367751147,1750915845945,-244.41593,0.00019944,2]
[367751149,1750915845954,-151.0,0.00019944,2]
[367751150,1750915845963,-151.0,0.00019944,2]
[367751152,1750915845973,-151.0,0.00019944,2]
[367751154,1750915845982,-151.0,0.00019944,2]
[367751156,1750915845991,-641.104482,0.00019944,2]
[367751158,1750915846000,-641.104482,0.00019944,2]
[367751160,1750915846011,-168.0,0.00019965,2]
[367751162,1750915846020,-460.0,0.00019984,2]
[367751164,1750915846029,-460.0,0.00019984,2]
[367751165,1750915846038,-204.17581799,0.00019985,2]
[367751167,1750915846047,-1123.05,0.00019985,2]
[367751169,1750915846056,-460.0,0.00019985,2]
[367751171,1750915846065,-460.0,0.00019985,2]
[367751172,1750915846074,-460.84,0.00019985,2]
[367751174,1750915846083,-276.94,0.00019985,2]
[367751176,1750915846092,-460.0,0.00019985,2]
[367751178,1750915846101,-460.0,0.00019985,2]
[367751180,1750915846110,-460.0,0.00019985,2]
[367751182,1750915846119,-244.13711364,0.0002,7]
[367751184,1750915846128,-13340.587907,0.0002,2]
[367751186,1750915846138,-4000.0,0.0002,4]
[367751187,1750915846147,-940.84,0.00020005,2]
[367751189,1750915846156,-460.0,0.00020005,2]
[367751191,1750915846166,-460.0,0.00020005,2]
[367751193,1750915846175,-460.0,0.00020005,2]
[367751195,1750915846184,-460.0,0.00020005,2]
[367751197,1750915846193,-495.51,0.00020005,2]
[367751199,1750915846203,-460.0,0.00020006,2]
[367751201,1750915846212,-348.0,0.00020103,2]
[367751202,1750915846221,-418.47240684,0.00020107,2]
[367751204,1750915846230,-354.286755,0.00020187,2]
[367751206,1750915846239,-361.44,0.00020258,2]
[367751208,1750915846248,-460.0,0.00020258,2]
[367751210,1750915846257,-1123.05,0.00020259,2]
[367751212,1750915846266,-151.0,0.00020259,2]
[367751214,1750915846275,-151.0,0.00020259,2]
[367751216,1750915846285,-151.0,0.00020259,2]
[367751217,1750915846294,-151.0,0.00020259,2]
[367751219,1750915846304,-151.0,0.00020259,2]
[367751221,1750915846313,-151.0,0.00020259,2]
[367751223,1750915846322,-151.0,0.00020259,2]
[367751225,1750915846331,-151.0,0.00020259,2]
[367751227,1750915846340,-460.0,0.00020259,2]
[367751229,1750915846349,-460.0,0.00020259,2]
[367751230,1750915846359,-460.84,0.00020259,2]
[367751232,1750915846369,-291.44702706,0.00020259,2]
[367751234,1750915846378,-460.0,0.00020259,2]
[367751236,1750915846387,-460.0,0.00020259,2]
[367751238,1750915846398,-940.84,0.00020279,2]
[367751240,1750915846408,-460.0,0.00020279,2]
[367751242,1750915846417,-460.0,0.00020279,2]
[367751243,1750915846426,-519.72,0.00020279,2]
[367751245,1750915846435,-460.0,0.00020279,2]
[367751247,1750915846444,-495.51,0.00020279,2]
[367751249,1750915846455,-460.0,0.0002028,2]
[367751251,1750915846464,-418.47240684,0.00020383,3]
[367751253,1750915846473,-460.0,0.00020532,2]
[367751255,1750915846482,-1123.05,0.00020533,2]
[367751256,1750915846492,-151.0,0.00020533,2]
[367751258,1750915846501,-151.0,0.00020533,2]
[367751260,1750915846510,-154.003911,0.00020533,2]
[367751262,1750915846520,-151.0,0.00020533,2]
[367751264,1750915846530,-899.205752,0.00020533,2]
[367751266,1750915846539,-899.205752,0.00020533,2]
[367751268,1750915846548,-460.0,0.00020533,2]
[367751270,1750915846558,-460.0,0.00020533,2]
[367751272,1750915846567,-460.84,0.00020533,2]
[367751273,1750915846578,-460.0,0.00020533,2]
[367751275,1750915846587,-163.87771808,0.00020533,2]
[367751277,1750915846596,-500.0,0.00020547,14]
[367751279,1750915846606,-940.84,0.00020553,2]
[367751281,1750915846614,-460.0,0.00020553,2]
[367751283,1750915846623,-460.0,0.00020553,2]
[367751285,1750915846633,-460.0,0.00020553,2]
[367751287,1750915846642,-495.51,0.00020553,2]
[367751288,1750915846651,-460.0,0.00020554,2]
[367751290,1750915846660,-865.71978,0.0002058,4]
[367751292,1750915846670,-418.47240684,0.00020659,3]
[367751294,1750915846679,-317.0,0.000207,2]
[367751296,1750915846688,-317.0,0.000207,2]
[367751298,1750915846699,-317.0,0.000207,2]
[367751300,1750915846709,-317.0,0.000207,2]
[367751302,1750915846719,-317.0,0.000207,2]
[367751303,1750915846728,-322.48148762,0.000207,2]
[367751305,1750915846737,-317.0,0.000207,2]
[367751307,1750915846747,-460.0,0.00020806,2]
[367751309,1750915846756,-1123.05,0.00020807,2]
[367751311,1750915846765,-460.0,0.00020807,2]
[367751313,1750915846774,-460.0,0.00020807,2]
[367751315,1750915846783,-460.84,0.00020807,2]
[367751317,1750915846792,-460.0,0.00020807,2]
[367751319,1750915846801,-151.0,0.00020807,2]
[367751320,1750915846810,-151.0,0.00020807,2]
[367751322,1750915846819,-209.680881,0.00020807,2]
[367751324,1750915846828,-250.0,0.00020821,2]
[367751326,1750915846837,-940.84,0.00020827,2]
[367751328,1750915846846,-460.0,0.00020827,2]
[367751330,1750915846855,-460.0,0.00020827,2]
[367751332,1750915846865,-460.0,0.00020827,2]
[367751334,1750915846874,-495.51,0.00020827,2]
[367751335,1750915846883,-460.0,0.00020828,2]
[367751337,1750915846892,-168.0,0.00020851,2]
[367751339,1750915846901,-348.0,0.00020891,2]
[367751341,1750915846910,-1261.79,0.00020895,2]
[367751343,1750915846920,-151.0,0.00020921,2]
[367751345,1750915846928,-151.0,0.00020921,2]
[367751347,1750915846938,-151.0,0.00020921,2]
[367751349,1750915846947,-354.573986,0.00020921,2]
[367751350,1750915846956,-354.573986,0.00020921,2]
[367751352,1750915846966,-151.0,0.00020921,2]
[367751354,1750915846975,-169.242712,0.00020921,2]
[367751356,1750915846984,-169.242712,0.00020921,2]
[367751358,1750915846993,-251.879377,0.00020921,2]
[367751360,1750915847002,-170.727745,0.00020921,2]